[Event "December 19 Early 2023"]
[Site "https://www.chess.com"]
[Date "2023.12.19"]
[Round "3"]
[White "Goltseva, Ekaterina"]
[Black "Piddubna, Bozhena"]
[Result "0-1"]
[Board "170"]
[TimeControl "180+1"]
[WhiteFideId "24173770"]
[BlackFideId "34109293"]
[WhiteElo "2139"]
[BlackElo "1874"]
[WhiteTeam "RUS"]
[BlackTeam "UKR"]
[WhiteClock "0:00:00"]
[BlackClock "0:00:11"]

1. c4 {[%clk 0:03:00]}  Nf6 {[%clk 0:02:59]} 2. Nc3 {[%clk 0:03:01]}  e6 {[%clk 0:03:00]} 3. Nf3 {[%clk 0:03:00]}  b6 {[%clk 0:02:55]} 4. g3 {[%clk 0:02:58]}  Bb7 {[%clk 0:02:56]} 5. Bg2 {[%clk 0:02:58]}  Be7 {[%clk 0:02:55]} 6. O-O {[%clk 0:02:59]}  O-O {[%clk 0:02:56]} 7. Re1 {[%clk 0:02:58]}  Ne4 {[%clk 0:02:56]} 8. Nxe4 {[%clk 0:02:56]}  Bxe4 {[%clk 0:02:57]} 9. d3 {[%clk 0:02:57]}  Bb7 {[%clk 0:02:56]} 10. e4 {[%clk 0:02:56]}  d5 {[%clk 0:02:55]} 11. exd5 {[%clk 0:02:45]}  exd5 {[%clk 0:02:52]} 12. Nd4 {[%clk 0:02:37]}  Bf6 {[%clk 0:02:43]} 13. Nf5 {[%clk 0:02:32]}  Nd7 {[%clk 0:02:15]} 14. cxd5 {[%clk 0:02:19]}  Ne5 {[%clk 0:01:54]} 15. d4 {[%clk 0:01:57]}  Ng6 {[%clk 0:01:54]} 16. Qf3 {[%clk 0:01:40]}  Qd7 {[%clk 0:01:44]} 17. h4 {[%clk 0:01:16]}  Rad8 {[%clk 0:01:28]} 18. h5 {[%clk 0:00:56]}  Bxd5 {[%clk 0:01:09]} 19. Qxd5 {[%clk 0:00:37]}  Qxd5 {[%clk 0:01:09]} 20. Bxd5 {[%clk 0:00:37]}  Rxd5 {[%clk 0:01:09]} 21. hxg6 {[%clk 0:00:20]}  Rxf5 {[%clk 0:01:09]} 22. gxh7+ {[%clk 0:00:20]}  Kxh7 {[%clk 0:01:10]} 23. Be3 {[%clk 0:00:17]}  Rd8 {[%clk 0:01:09]} 24. Rac1 {[%clk 0:00:17]}  Rd7 {[%clk 0:01:09]} 25. Rc4 {[%clk 0:00:12]}  b5 {[%clk 0:01:03]} 26. Rc6 {[%clk 0:00:09]}  Bxd4 {[%clk 0:00:56]} 27. Rd1 {[%clk 0:00:09]}  Rfd5 {[%clk 0:00:50]} 28. Rxd4 {[%clk 0:00:07]}  Rxd4 {[%clk 0:00:50]} 29. Bxd4 {[%clk 0:00:08]}  Rxd4 {[%clk 0:00:51]} 30. Rxc7 {[%clk 0:00:09]}  Ra4 {[%clk 0:00:45]} 31. a3 {[%clk 0:00:07]}  Kg6 {[%clk 0:00:43]} 32. Rb7 {[%clk 0:00:06]}  a6 {[%clk 0:00:43]} 33. Rb6+ {[%clk 0:00:06]}  f6 {[%clk 0:00:42]} 34. Kg2 {[%clk 0:00:07]}  Kf5 {[%clk 0:00:41]} 35. Rb7 {[%clk 0:00:07]}  g5 {[%clk 0:00:41]} 36. Kf3 {[%clk 0:00:07]}  Ke5 {[%clk 0:00:38]} 37. Rb6 {[%clk 0:00:07]}  Kf5 {[%clk 0:00:23]} 38. Ke3 {[%clk 0:00:05]}  Re4+ {[%clk 0:00:19]} 39. Kd3 {[%clk 0:00:05]}  Re6 {[%clk 0:00:12]} 40. Rb7 {[%clk 0:00:03]}  Rd6+ {[%clk 0:00:11]} 41. Kc3 {[%clk 0:00:02]}  Ke4 {[%clk 0:00:11]} 42. Kb4 {[%clk 0:00:00]}  Kf3 {[%clk 0:00:11]} 0-1

[Event "December 19 Early 2023"]
[Site "https://www.chess.com"]
[Date "2023.12.19"]
[Round "3"]
[White "Sanchez Alvares, Kelvin Antonio"]
[Black "Sevostianov, Vladimir"]
[Result "1-0"]
[Board "173"]
[TimeControl "180+1"]
[WhiteFideId "3906680"]
[BlackFideId "4144163"]
[WhiteElo "2217"]
[BlackElo "2150"]
[WhiteTeam "VEN"]
[BlackTeam "RUS"]
[WhiteClock "0:00:05"]
[BlackClock "0:00:30"]

1. e4 {[%clk 0:03:00]}  c5 {[%clk 0:02:58]} 2. Nf3 {[%clk 0:03:00]}  Nc6 {[%clk 0:02:58]} 3. d4 {[%clk 0:02:59]}  cxd4 {[%clk 0:02:58]} 4. Nxd4 {[%clk 0:03:00]}  Nf6 {[%clk 0:02:58]} 5. Nc3 {[%clk 0:02:58]}  e5 {[%clk 0:02:57]} 6. Ndb5 {[%clk 0:02:57]}  d6 {[%clk 0:02:57]} 7. Bg5 {[%clk 0:02:50]}  a6 {[%clk 0:02:56]} 8. Na3 {[%clk 0:02:48]}  b5 {[%clk 0:02:55]} 9. Nd5 {[%clk 0:02:46]}  Be7 {[%clk 0:02:53]} 10. Bxf6 {[%clk 0:02:46]}  Bxf6 {[%clk 0:02:52]} 11. c4 {[%clk 0:02:46]}  b4 {[%clk 0:02:48]} 12. Nc2 {[%clk 0:02:45]}  Rb8 {[%clk 0:02:44]} 13. b3 {[%clk 0:02:38]}  O-O {[%clk 0:02:42]} 14. g3 {[%clk 0:02:38]}  a5 {[%clk 0:02:36]} 15. Bg2 {[%clk 0:02:37]}  Be6 {[%clk 0:02:31]} 16. O-O {[%clk 0:02:17]}  Bxd5 {[%clk 0:02:29]} 17. Qxd5 {[%clk 0:02:01]}  Nd4 {[%clk 0:02:25]} 18. Nxd4 {[%clk 0:01:51]}  exd4 {[%clk 0:02:24]} 19. f4 {[%clk 0:01:50]}  Qc7 {[%clk 0:02:22]} 20. Rfe1 {[%clk 0:01:46]}  Rfe8 {[%clk 0:02:19]} 21. Rac1 {[%clk 0:01:16]}  Rbc8 {[%clk 0:02:08]} 22. Bh3 {[%clk 0:00:54]}  Rcd8 {[%clk 0:02:07]} 23. Bf1 {[%clk 0:00:35]}  g6 {[%clk 0:02:00]} 24. Bd3 {[%clk 0:00:34]}  Bg7 {[%clk 0:01:58]} 25. c5 {[%clk 0:00:32]}  dxc5 {[%clk 0:01:51]} 26. Qxc5 {[%clk 0:00:32]}  Qxc5 {[%clk 0:01:45]} 27. Rxc5 {[%clk 0:00:33]}  Ra8 {[%clk 0:01:45]} 28. e5 {[%clk 0:00:30]}  Rec8 {[%clk 0:01:42]} 29. Rd5 {[%clk 0:00:26]}  Rd8 {[%clk 0:01:34]} 30. Rc5 {[%clk 0:00:20]}  Bf8 {[%clk 0:01:32]} 31. Rc7 {[%clk 0:00:17]}  a4 {[%clk 0:01:31]} 32. Bc4 {[%clk 0:00:16]}  d3 {[%clk 0:01:27]} 33. Rxf7 {[%clk 0:00:14]}  Kh8 {[%clk 0:01:25]} 34. Rd1 {[%clk 0:00:13]}  d2 {[%clk 0:01:24]} 35. Kf2 {[%clk 0:00:13]}  axb3 {[%clk 0:01:18]} 36. axb3 {[%clk 0:00:13]}  Bc5+ {[%clk 0:01:14]} 37. Ke2 {[%clk 0:00:14]}  Ra2 {[%clk 0:01:13]} 38. e6 {[%clk 0:00:13]}  Re8 {[%clk 0:01:11]} 39. Rxd2 {[%clk 0:00:11]}  Rxd2+ {[%clk 0:01:10]} 40. Kxd2 {[%clk 0:00:10]}  Bg1 {[%clk 0:01:11]} 41. h3 {[%clk 0:00:09]}  Bh2 {[%clk 0:01:10]} 42. g4 {[%clk 0:00:07]}  h5 {[%clk 0:01:09]} 43. f5 {[%clk 0:00:06]}  hxg4 {[%clk 0:01:08]} 44. hxg4 {[%clk 0:00:07]}  gxf5 {[%clk 0:01:08]} 45. gxf5 {[%clk 0:00:08]}  Be5 {[%clk 0:01:06]} 46. Ke3 {[%clk 0:00:08]}  Bc3 {[%clk 0:01:03]} 47. Ke4 {[%clk 0:00:08]}  Rd8 {[%clk 0:01:02]} 48. f6 {[%clk 0:00:09]}  Kg8 {[%clk 0:01:00]} 49. Kf5 {[%clk 0:00:09]}  Rf8 {[%clk 0:00:55]} 50. Rg7+ {[%clk 0:00:07]}  Kh8 {[%clk 0:00:55]} 51. Rg6 {[%clk 0:00:07]}  Kh7 {[%clk 0:00:54]} 52. e7 {[%clk 0:00:06]}  Re8 {[%clk 0:00:49]} 53. Rg7+ {[%clk 0:00:05]}  Kh6 {[%clk 0:00:47]} 54. Rf7 {[%clk 0:00:05]}  Bd4 {[%clk 0:00:38]} 55. Rf8 {[%clk 0:00:04]}  Rxe7 {[%clk 0:00:32]} 56. fxe7 {[%clk 0:00:04]}  Bg7 {[%clk 0:00:31]} 57. e8=Q {[%clk 0:00:04]}  Bxf8 {[%clk 0:00:31]} 58. Qxf8+ {[%clk 0:00:05]}  Kh7 {[%clk 0:00:30]} 59. Qg8+ {[%clk 0:00:04]}  Kh6 {[%clk 0:00:30]} 60. Qg6# {[%clk 0:00:05]} 1-0

[Event "December 19 Early 2023"]
[Site "https://www.chess.com"]
[Date "2023.12.19"]
[Round "3"]
[White "Santos, Isaque Goncalves"]
[Black "Iljin, Timofey"]
[Result "0-1"]
[Board "177"]
[TimeControl "180+1"]
[WhiteFideId "2103885"]
[BlackFideId "14110180"]
[WhiteElo "1901"]
[BlackElo "2380"]
[WhiteTeam "BRA"]
[BlackTeam "UKR"]
[WhiteClock "0:00:09"]
[BlackClock "0:00:23"]

1. d4 {[%clk 0:03:00]}  f5 {[%clk 0:02:59]} 2. Qd3 {[%clk 0:03:00]}  d6 {[%clk 0:02:58]} 3. g4 {[%clk 0:02:59]}  fxg4 {[%clk 0:02:58]} 4. h3 {[%clk 0:02:59]}  g3 {[%clk 0:02:58]} 5. fxg3 {[%clk 0:02:52]}  Nf6 {[%clk 0:02:58]} 6. Nf3 {[%clk 0:02:51]}  g6 {[%clk 0:02:58]} 7. e4 {[%clk 0:02:48]}  Bg7 {[%clk 0:02:57]} 8. Bg2 {[%clk 0:02:40]}  O-O {[%clk 0:02:56]} 9. O-O {[%clk 0:02:38]}  Nbd7 {[%clk 0:02:56]} 10. c4 {[%clk 0:02:36]}  e5 {[%clk 0:02:55]} 11. dxe5 {[%clk 0:02:32]}  dxe5 {[%clk 0:02:53]} 12. g4 {[%clk 0:02:23]}  c6 {[%clk 0:02:47]} 13. Be3 {[%clk 0:02:13]}  Qc7 {[%clk 0:02:46]} 14. Nc3 {[%clk 0:02:12]}  Nb8 {[%clk 0:02:22]} 15. Rad1 {[%clk 0:02:07]}  Na6 {[%clk 0:02:03]} 16. a3 {[%clk 0:02:05]}  Be6 {[%clk 0:01:50]} 17. Ng5 {[%clk 0:02:04]}  Rad8 {[%clk 0:01:41]} 18. Qe2 {[%clk 0:01:46]}  Bc8 {[%clk 0:01:37]} 19. b4 {[%clk 0:01:30]}  h6 {[%clk 0:01:10]} 20. Nf3 {[%clk 0:01:28]}  Be6 {[%clk 0:01:10]} 21. Nh4 {[%clk 0:01:05]}  Qf7 {[%clk 0:00:54]} 22. Rxd8 {[%clk 0:00:52]}  Rxd8 {[%clk 0:00:54]} 23. Rd1 {[%clk 0:00:43]}  Rxd1+ {[%clk 0:00:53]} 24. Qxd1 {[%clk 0:00:42]}  Bxc4 {[%clk 0:00:54]} 25. Qd8+ {[%clk 0:00:41]}  Kh7 {[%clk 0:00:53]} 26. Bxa7 {[%clk 0:00:36]}  Nxg4 {[%clk 0:00:40]} 27. hxg4 {[%clk 0:00:34]}  Bf6 {[%clk 0:00:41]} 28. Qd2 {[%clk 0:00:13]}  Bxh4 {[%clk 0:00:41]} 29. Kh2 {[%clk 0:00:12]}  c5 {[%clk 0:00:31]} 30. bxc5 {[%clk 0:00:10]}  Bg5 {[%clk 0:00:31]} 31. Qb2 {[%clk 0:00:09]}  Qf4+ {[%clk 0:00:26]} 32. Kg1 {[%clk 0:00:09]}  Qe3+ {[%clk 0:00:23]} 33. Kh1 {[%clk 0:00:09]}  Qe1+ {[%clk 0:00:21]} 34. Kh2 {[%clk 0:00:09]}  Bf4+ {[%clk 0:00:22]} 35. Kh3 {[%clk 0:00:09]}  Qg3# {[%clk 0:00:23]} 0-1

[Event "December 19 Early 2023"]
[Site "https://www.chess.com"]
[Date "2023.12.19"]
[Round "3"]
[White "Durucay, Uygar"]
[Black "Masterisback04"]
[Result "1-0"]
[Board "178"]
[TimeControl "180+1"]
[WhiteFideId "44591560"]
[WhiteElo "1913"]
[BlackElo "1737"]
[WhiteTeam "TUR"]
[WhiteClock "0:00:19"]
[BlackClock "0:00:05"]

1. d4 {[%clk 0:03:00]}  Nf6 {[%clk 0:02:59]} 2. Nf3 {[%clk 0:03:00]}  d5 {[%clk 0:02:58]} 3. c4 {[%clk 0:02:59]}  c6 {[%clk 0:02:58]} 4. Qc2 {[%clk 0:02:55]}  Bg4 {[%clk 0:02:57]} 5. Ne5 {[%clk 0:02:45]}  Bh5 {[%clk 0:02:54]} 6. cxd5 {[%clk 0:02:44]}  Nxd5 {[%clk 0:02:48]} 7. Qb3 {[%clk 0:02:20]}  Qb6 {[%clk 0:02:38]} 8. Qxb6 {[%clk 0:02:15]}  Nxb6 {[%clk 0:02:29]} 9. e4 {[%clk 0:02:11]}  N8d7 {[%clk 0:02:28]} 10. Nxd7 {[%clk 0:02:10]}  Nxd7 {[%clk 0:02:28]} 11. Nc3 {[%clk 0:02:10]}  e6 {[%clk 0:02:28]} 12. h4 {[%clk 0:02:02]}  Bb4 {[%clk 0:02:09]} 13. Be3 {[%clk 0:01:55]}  Bg6 {[%clk 0:02:01]} 14. f3 {[%clk 0:01:55]}  h5 {[%clk 0:01:59]} 15. a3 {[%clk 0:01:55]}  Be7 {[%clk 0:01:56]} 16. b4 {[%clk 0:01:52]}  O-O {[%clk 0:01:55]} 17. Be2 {[%clk 0:01:48]}  a5 {[%clk 0:01:53]} 18. b5 {[%clk 0:01:47]}  cxb5 {[%clk 0:01:46]} 19. Bxb5 {[%clk 0:01:41]}  Nf6 {[%clk 0:01:45]} 20. Kf2 {[%clk 0:01:32]}  Rfc8 {[%clk 0:01:43]} 21. Rhc1 {[%clk 0:01:30]}  Ne8 {[%clk 0:01:27]} 22. Bxe8 {[%clk 0:01:28]}  Rxe8 {[%clk 0:01:26]} 23. Nb5 {[%clk 0:01:28]}  Rac8 {[%clk 0:01:23]} 24. a4 {[%clk 0:01:25]}  Bb4 {[%clk 0:01:18]} 25. Na7 {[%clk 0:01:14]}  Rxc1 {[%clk 0:01:16]} 26. Rxc1 {[%clk 0:01:14]}  Be7 {[%clk 0:01:14]} 27. Nb5 {[%clk 0:01:13]}  Bxh4+ {[%clk 0:01:14]} 28. g3 {[%clk 0:01:13]}  Be7 {[%clk 0:01:12]} 29. Rc7 {[%clk 0:01:12]}  b6 {[%clk 0:01:09]} 30. Rc6 {[%clk 0:01:05]}  Rb8 {[%clk 0:01:06]} 31. Bf4 {[%clk 0:01:03]}  Rd8 {[%clk 0:00:59]} 32. Rxb6 {[%clk 0:01:00]}  Bb4 {[%clk 0:00:54]} 33. Rb7 {[%clk 0:00:56]}  f6 {[%clk 0:00:50]} 34. Rc7 {[%clk 0:00:52]}  Be8 {[%clk 0:00:48]} 35. Be3 {[%clk 0:00:49]}  Rb8 {[%clk 0:00:36]} 36. d5 {[%clk 0:00:48]}  exd5 {[%clk 0:00:32]} 37. exd5 {[%clk 0:00:49]}  Bxb5 {[%clk 0:00:32]} 38. axb5 {[%clk 0:00:50]}  Rxb5 {[%clk 0:00:32]} 39. Rd7 {[%clk 0:00:49]}  Rb8 {[%clk 0:00:25]} 40. Bf4 {[%clk 0:00:46]}  Ra8 {[%clk 0:00:24]} 41. d6 {[%clk 0:00:45]}  a4 {[%clk 0:00:24]} 42. Rc7 {[%clk 0:00:45]}  a3 {[%clk 0:00:24]} 43. d7 {[%clk 0:00:45]}  Rd8 {[%clk 0:00:21]} 44. Rc8 {[%clk 0:00:45]}  Be7 {[%clk 0:00:21]} 45. Bc7 {[%clk 0:00:35]}  a2 {[%clk 0:00:18]} 46. Bxd8 {[%clk 0:00:34]}  Bc5+ {[%clk 0:00:17]} 47. Kg2 {[%clk 0:00:24]}  Kf7 {[%clk 0:00:15]} 48. Bxf6 {[%clk 0:00:22]}  gxf6 {[%clk 0:00:15]} 49. d8=Q {[%clk 0:00:22]}  a1=Q {[%clk 0:00:15]} 50. Qe8+ {[%clk 0:00:21]}  Kg7 {[%clk 0:00:14]} 51. Rc7+ {[%clk 0:00:21]}  Kh6 {[%clk 0:00:13]} 52. Qh8+ {[%clk 0:00:20]}  Kg5 {[%clk 0:00:13]} 53. Rxc5+ {[%clk 0:00:20]}  f5 {[%clk 0:00:05]} 54. Qxa1 {[%clk 0:00:19]} 1-0

[Event "December 19 Early 2023"]
[Site "https://www.chess.com"]
[Date "2023.12.19"]
[Round "3"]
[White "Rangel, Daniel"]
[Black "UnTucopalaTimba"]
[Result "1-0"]
[Board "179"]
[TimeControl "180+1"]
[WhiteFideId "2124475"]
[WhiteElo "2267"]
[BlackElo "1672"]
[WhiteTeam "BRA"]
[WhiteClock "0:00:06"]
[BlackClock "0:00:00"]

1. e4 {[%clk 0:03:00]}  c6 {[%clk 0:02:58]} 2. c4 {[%clk 0:02:59]}  d5 {[%clk 0:02:56]} 3. cxd5 {[%clk 0:03:00]}  cxd5 {[%clk 0:02:56]} 4. exd5 {[%clk 0:03:01]}  Qxd5 {[%clk 0:02:56]} 5. Nc3 {[%clk 0:03:02]}  Qa5 {[%clk 0:02:55]} 6. Nf3 {[%clk 0:03:02]}  Nf6 {[%clk 0:02:54]} 7. Bc4 {[%clk 0:03:03]}  Bg4 {[%clk 0:02:51]} 8. h3 {[%clk 0:02:59]}  Bh5 {[%clk 0:02:51]} 9. d4 {[%clk 0:02:55]}  e6 {[%clk 0:02:49]} 10. O-O {[%clk 0:02:51]}  Be7 {[%clk 0:02:48]} 11. Qd3 {[%clk 0:02:35]}  Bg6 {[%clk 0:02:44]} 12. Qe2 {[%clk 0:02:25]}  Nc6 {[%clk 0:02:39]} 13. a3 {[%clk 0:02:19]}  O-O {[%clk 0:02:31]} 14. Bf4 {[%clk 0:02:12]}  a6 {[%clk 0:02:18]} 15. Rad1 {[%clk 0:02:04]}  b5 {[%clk 0:02:07]} 16. Ba2 {[%clk 0:01:48]}  Qb6 {[%clk 0:01:59]} 17. Rfe1 {[%clk 0:01:36]}  Rfd8 {[%clk 0:01:48]} 18. d5 {[%clk 0:01:16]}  exd5 {[%clk 0:01:32]} 19. Bxd5 {[%clk 0:01:17]}  Bc5 {[%clk 0:01:17]} 20. Ne5 {[%clk 0:00:57]}  Nxd5 {[%clk 0:01:00]} 21. Nxd5 {[%clk 0:00:58]}  Qb7 {[%clk 0:00:55]} 22. Nxc6 {[%clk 0:00:27]}  Qxc6 {[%clk 0:00:53]} 23. Ne7+ {[%clk 0:00:26]}  Bxe7 {[%clk 0:00:51]} 24. Qxe7 {[%clk 0:00:27]}  Re8 {[%clk 0:00:49]} 25. Qb4 {[%clk 0:00:22]}  Bc2 {[%clk 0:00:40]} 26. Rc1 {[%clk 0:00:20]}  Rxe1+ {[%clk 0:00:39]} 27. Qxe1 {[%clk 0:00:20]}  Qg6 {[%clk 0:00:36]} 28. Qe3 {[%clk 0:00:14]}  Be4 {[%clk 0:00:35]} 29. Qg3 {[%clk 0:00:15]}  Qxg3 {[%clk 0:00:35]} 30. Bxg3 {[%clk 0:00:15]}  Re8 {[%clk 0:00:32]} 31. Rc7 {[%clk 0:00:16]}  f6 {[%clk 0:00:29]} 32. Bf4 {[%clk 0:00:15]}  g5 {[%clk 0:00:28]} 33. Bd2 {[%clk 0:00:15]}  Ra8 {[%clk 0:00:26]} 34. Bc3 {[%clk 0:00:14]}  a5 {[%clk 0:00:17]} 35. Bxf6 {[%clk 0:00:13]}  b4 {[%clk 0:00:17]} 36. axb4 {[%clk 0:00:12]}  axb4 {[%clk 0:00:17]} 37. Bxg5 {[%clk 0:00:10]}  Ra2 {[%clk 0:00:16]} 38. Bf6 {[%clk 0:00:10]}  Ra1+ {[%clk 0:00:15]} 39. Kh2 {[%clk 0:00:10]}  Rf1 {[%clk 0:00:14]} 40. f3 {[%clk 0:00:09]}  Bg6 {[%clk 0:00:11]} 41. Kg3 {[%clk 0:00:09]}  Rd1 {[%clk 0:00:10]} 42. Be5 {[%clk 0:00:09]}  Rd5 {[%clk 0:00:09]} 43. f4 {[%clk 0:00:09]}  Rd3+ {[%clk 0:00:08]} 44. Kh4 {[%clk 0:00:09]}  Rd2 {[%clk 0:00:08]} 45. g4 {[%clk 0:00:09]}  Be4 {[%clk 0:00:07]} 46. Kg5 {[%clk 0:00:09]}  Rd3 {[%clk 0:00:06]} 47. h4 {[%clk 0:00:09]}  Rd5 {[%clk 0:00:06]} 48. h5 {[%clk 0:00:09]}  Rb5 {[%clk 0:00:03]} 49. h6 {[%clk 0:00:07]}  Rb6 {[%clk 0:00:03]} 50. Rg7+ {[%clk 0:00:05]}  Kf8 {[%clk 0:00:02]} 51. Ra7 {[%clk 0:00:06]}  Rg6+ {[%clk 0:00:00]} 52. Kh5 {[%clk 0:00:06]} 1-0

[Event "December 19 Early 2023"]
[Site "https://www.chess.com"]
[Date "2023.12.19"]
[Round "3"]
[White "Mohammed, Zozek Salah Mohammed"]
[Black "Weishaeutel, Moritz"]
[Result "1/2-1/2"]
[Board "181"]
[TimeControl "180+1"]
[WhiteFideId "4803361"]
[BlackFideId "12967300"]
[WhiteElo "2211"]
[BlackElo "2321"]
[WhiteTeam "IRQ"]
[BlackTeam "GER"]
[WhiteClock "0:00:08"]
[BlackClock "0:00:03"]

1. d4 {[%clk 0:01:35]}  e6 {[%clk 0:02:55]} 2. Nf3 {[%clk 0:01:36]}  d5 {[%clk 0:02:53]} 3. g3 {[%clk 0:01:37]}  Nf6 {[%clk 0:02:52]} 4. Bg2 {[%clk 0:01:37]}  Be7 {[%clk 0:02:53]} 5. O-O {[%clk 0:01:37]}  O-O {[%clk 0:02:54]} 6. c4 {[%clk 0:01:38]}  dxc4 {[%clk 0:02:55]} 7. Qc2 {[%clk 0:01:36]}  a6 {[%clk 0:02:56]} 8. a4 {[%clk 0:01:35]}  b6 {[%clk 0:02:56]} 9. Ne5 {[%clk 0:01:34]}  Ra7 {[%clk 0:02:57]} 10. Qxc4 {[%clk 0:01:34]}  Bb7 {[%clk 0:02:57]} 11. Bf4 {[%clk 0:01:33]}  Bxg2 {[%clk 0:02:55]} 12. Kxg2 {[%clk 0:01:34]}  c5 {[%clk 0:02:54]} 13. dxc5 {[%clk 0:01:31]}  Bxc5 {[%clk 0:02:55]} 14. Nc3 {[%clk 0:01:30]}  Nbd7 {[%clk 0:02:49]} 15. Nxd7 {[%clk 0:01:26]}  Rxd7 {[%clk 0:02:45]} 16. Qxa6 {[%clk 0:01:24]}  Nd5 {[%clk 0:02:30]} 17. Nxd5 {[%clk 0:01:21]}  Rxd5 {[%clk 0:02:30]} 18. Qc4 {[%clk 0:01:17]}  Rd4 {[%clk 0:02:29]} 19. Qc2 {[%clk 0:01:16]}  Qd5+ {[%clk 0:02:27]} 20. f3 {[%clk 0:01:16]}  Rd8 {[%clk 0:02:25]} 21. b3 {[%clk 0:01:10]}  Qd7 {[%clk 0:01:52]} 22. Be3 {[%clk 0:01:10]}  Rd5 {[%clk 0:01:51]} 23. Bxc5 {[%clk 0:01:03]}  Rd2 {[%clk 0:01:51]} 24. Qe4 {[%clk 0:01:00]}  bxc5 {[%clk 0:01:50]} 25. a5 {[%clk 0:00:59]}  Qb5 {[%clk 0:01:48]} 26. Rfe1 {[%clk 0:00:49]}  R8d4 {[%clk 0:01:19]} 27. Qa8+ {[%clk 0:00:44]}  Rd8 {[%clk 0:01:19]} 28. Qe4 {[%clk 0:00:45]}  Qa6 {[%clk 0:01:10]} 29. Qc4 {[%clk 0:00:42]}  Qa7 {[%clk 0:01:02]} 30. a6 {[%clk 0:00:41]}  g6 {[%clk 0:01:01]} 31. Ra5 {[%clk 0:00:39]}  R2d5 {[%clk 0:00:56]} 32. e4 {[%clk 0:00:39]}  Rd2+ {[%clk 0:00:56]} 33. Kh3 {[%clk 0:00:39]}  e5 {[%clk 0:00:25]} 34. Qxc5 {[%clk 0:00:37]}  Qd7+ {[%clk 0:00:25]} 35. g4 {[%clk 0:00:37]}  Rxh2+ {[%clk 0:00:07]} 36. Kxh2 {[%clk 0:00:36]}  Qd2+ {[%clk 0:00:07]} 37. Kh3 {[%clk 0:00:28]}  Qxe1 {[%clk 0:00:08]} 38. Ra2 {[%clk 0:00:20]}  Qh1+ {[%clk 0:00:06]} 39. Kg3 {[%clk 0:00:17]}  Rd1 {[%clk 0:00:07]} 40. a7 {[%clk 0:00:09]}  Rg1+ {[%clk 0:00:06]} 41. Qxg1 {[%clk 0:00:09]}  Qxg1+ {[%clk 0:00:06]} 42. Kh3 {[%clk 0:00:10]}  Qh1+ {[%clk 0:00:06]} 43. Kg3 {[%clk 0:00:09]}  Qg1+ {[%clk 0:00:07]} 44. Kh3 {[%clk 0:00:08]}  Qf1+ {[%clk 0:00:07]} 45. Kg3 {[%clk 0:00:08]}  Qg1+ {[%clk 0:00:03]} 1/2-1/2

[Event "December 19 Early 2023"]
[Site "https://www.chess.com"]
[Date "2023.12.19"]
[Round "3"]
[White "Obon Temprano, Sergi"]
[Black "Kurmangaliyeva, Liya"]
[Result "0-1"]
[Board "186"]
[TimeControl "180+1"]
[WhiteFideId "2226545"]
[BlackFideId "13725831"]
[WhiteElo "2135"]
[BlackElo "2077"]
[WhiteTeam "ESP"]
[BlackTeam "KAZ"]
[WhiteClock "0:00:09"]
[BlackClock "0:00:48"]

1. d4 {[%clk 0:03:00]}  d5 {[%clk 0:03:00]} 2. Nf3 {[%clk 0:03:01]}  Nf6 {[%clk 0:02:59]} 3. e3 {[%clk 0:03:00]}  e6 {[%clk 0:02:52]} 4. Bd3 {[%clk 0:03:00]}  Nbd7 {[%clk 0:02:47]} 5. O-O {[%clk 0:02:59]}  Bd6 {[%clk 0:02:47]} 6. b3 {[%clk 0:02:59]}  O-O {[%clk 0:02:48]} 7. Bb2 {[%clk 0:02:59]}  Qe7 {[%clk 0:02:46]} 8. Ne5 {[%clk 0:02:58]}  c5 {[%clk 0:02:42]} 9. f4 {[%clk 0:02:57]}  a6 {[%clk 0:02:34]} 10. Nd2 {[%clk 0:02:56]}  b5 {[%clk 0:02:32]} 11. c4 {[%clk 0:02:49]}  dxc4 {[%clk 0:02:25]} 12. bxc4 {[%clk 0:02:49]}  b4 {[%clk 0:02:26]} 13. Ne4 {[%clk 0:02:46]}  Bb7 {[%clk 0:02:22]} 14. Nxd6 {[%clk 0:02:42]}  Qxd6 {[%clk 0:02:22]} 15. Qc2 {[%clk 0:02:29]}  Rac8 {[%clk 0:02:11]} 16. Rad1 {[%clk 0:02:18]}  Rfd8 {[%clk 0:02:09]} 17. dxc5 {[%clk 0:02:11]}  Qxc5 {[%clk 0:02:07]} 18. Bd4 {[%clk 0:02:10]}  Qc7 {[%clk 0:01:41]} 19. Nxd7 {[%clk 0:01:58]}  Rxd7 {[%clk 0:01:39]} 20. Be5 {[%clk 0:01:55]}  Qc6 {[%clk 0:01:33]} 21. Bxf6 {[%clk 0:01:48]}  gxf6 {[%clk 0:01:33]} 22. Bxh7+ {[%clk 0:01:46]}  Kg7 {[%clk 0:01:33]} 23. Rxd7 {[%clk 0:01:45]}  Qxd7 {[%clk 0:01:32]} 24. Be4 {[%clk 0:01:39]}  Bxe4 {[%clk 0:01:29]} 25. Qxe4 {[%clk 0:01:39]}  Qd2 {[%clk 0:01:29]} 26. f5 {[%clk 0:01:16]}  e5 {[%clk 0:01:25]} 27. h3 {[%clk 0:01:15]}  Qxa2 {[%clk 0:01:23]} 28. Rf3 {[%clk 0:01:08]}  Qxc4 {[%clk 0:01:23]} 29. Rg3+ {[%clk 0:01:06]}  Kf8 {[%clk 0:01:23]} 30. Qb7 {[%clk 0:01:01]}  Qc6 {[%clk 0:01:16]} 31. Qxb4+ {[%clk 0:00:58]}  Qc5 {[%clk 0:01:15]} 32. Qa4 {[%clk 0:00:29]}  a5 {[%clk 0:01:13]} 33. h4 {[%clk 0:00:29]}  Rb8 {[%clk 0:01:04]} 34. h5 {[%clk 0:00:27]}  Rb1+ {[%clk 0:00:58]} 35. Kh2 {[%clk 0:00:27]}  Qc1 {[%clk 0:00:53]} 36. Rf3 {[%clk 0:00:17]}  Qh1+ {[%clk 0:00:52]} 37. Kg3 {[%clk 0:00:17]}  Rb4 {[%clk 0:00:48]} 38. Qxa5 {[%clk 0:00:09]}  Qh4# {[%clk 0:00:48]} 0-1

[Event "December 19 Early 2023"]
[Site "https://www.chess.com"]
[Date "2023.12.19"]
[Round "3"]
[White "Ljukin, Sergei"]
[Black "Vincenti, Leonardo"]
[Result "1-0"]
[Board "187"]
[TimeControl "180+1"]
[WhiteFideId "14102200"]
[BlackFideId "28550820"]
[WhiteElo "2319"]
[BlackElo "2054"]
[WhiteTeam "UKR"]
[BlackTeam "ITA"]
[WhiteClock "0:01:31"]
[BlackClock "0:00:43"]

1. e4 {[%clk 0:03:00]}  e5 {[%clk 0:02:53]} 2. Nf3 {[%clk 0:02:59]}  Nf6 {[%clk 0:02:53]} 3. Nxe5 {[%clk 0:02:59]}  d6 {[%clk 0:02:52]} 4. Nf3 {[%clk 0:02:59]}  Nxe4 {[%clk 0:02:51]} 5. d3 {[%clk 0:03:00]}  Nf6 {[%clk 0:02:51]} 6. d4 {[%clk 0:03:00]}  Bf5 {[%clk 0:02:50]} 7. Be2 {[%clk 0:02:56]}  Be7 {[%clk 0:02:50]} 8. O-O {[%clk 0:02:57]}  O-O {[%clk 0:02:50]} 9. c4 {[%clk 0:02:57]}  Nbd7 {[%clk 0:02:49]} 10. Nc3 {[%clk 0:02:57]}  Re8 {[%clk 0:02:49]} 11. Bf4 {[%clk 0:02:53]}  h6 {[%clk 0:02:44]} 12. h3 {[%clk 0:02:52]}  Ne4 {[%clk 0:02:42]} 13. Re1 {[%clk 0:02:44]}  Ndf6 {[%clk 0:02:38]} 14. Bd3 {[%clk 0:02:35]}  Bf8 {[%clk 0:02:27]} 15. Qc2 {[%clk 0:02:25]}  Nxc3 {[%clk 0:02:03]} 16. Bxf5 {[%clk 0:02:22]}  g6 {[%clk 0:01:50]} 17. Bd3 {[%clk 0:02:00]}  Nh5 {[%clk 0:01:41]} 18. Be3 {[%clk 0:01:48]}  Rxe3 {[%clk 0:01:05]} 19. Rxe3 {[%clk 0:01:38]}  Qf6 {[%clk 0:00:57]} 20. bxc3 {[%clk 0:01:36]}  Nf4 {[%clk 0:00:54]} 21. Rae1 {[%clk 0:01:32]}  Qg5 {[%clk 0:00:43]} 22. Nxg5 {[%clk 0:01:31]} 1-0